bitfinex/quotes_ETHUSD_20220120
["timestamp","ask_amount","ask_price","bid_price","bid_amount"]
[1642704379608,0.00284211,3227.9,3227.8,3.55]
[1642704379814,0.00284211,3227.9,3227.8,2.85]
[1642704380009,0.00284211,3227.9,3227.8,3.85]
[1642704381253,0.00284211,3227.9,3227.8,6.4]
[1642704381655,0.00284211,3227.9,3227.8,3.85]
[1642704389854,0.00196613,3227.9,3227.8,3.85]
[1642704391260,0.00196613,3227.9,3227.8,6.2]
[1642704391698,0.00196613,3227.9,3227.8,6.647]
[1642704392501,0.00196613,3227.9,3227.8,4.297]
[1642704394803,0.00196613,3227.9,3227.8,7.23477661]
[1642704395105,2.76883946,3229.2,3228.1,0.77428]
[1642704395106,2.58064957,3228.7,3228.1,0.77428]
[1642704395354,1.1987,3229.2,3228.2,0.447]
[1642704395562,0.00454739,3228.7,3228.2,0.447]
[1642704395755,0.00454739,3228.7,3228.2,3.38561324]
[1642704395952,0.00397897,3228.6,3228.2,3.38561324]
[1642704396155,0.00397897,3228.6,3228.3,1.0]
[1642704396357,1.1987,3229.2,3228.3,1.0]
[1642704396358,0.00341054,3228.5,3228.3,1.0]
[1642704396557,0.00341054,3228.5,3228.2,0.447]
[1642704396757,1.1987,3229.2,3228.2,0.447]
[1642704396758,0.00284212,3228.4,3228.2,0.447]
[1642704397161,1.1987,3229.2,3228.2,0.447]
[1642704397162,0.0022737,3228.3,3228.2,0.447]
[1642704398267,0.0022737,3228.3,3228.2,4.997]
[1642704398661,0.0022737,3228.3,3228.2,8.90326634]
[1642704398862,0.0022737,3228.3,3228.2,5.997]
[1642704399103,0.0022737,3228.3,3228.2,7.14727883]
[1642704399502,0.0022737,3228.3,3228.2,7.44727883]
[1642704400103,0.0022737,3228.3,3228.2,8.22154883]
[1642704402513,0.0022737,3228.3,3228.2,11.16208282]
[1642704402976,3.9935,3229.4,3228.3,6.15]
[1642704403173,3.9935,3229.4,3228.7,1.89313211]
[1642704403374,0.00511581,3229.2,3228.9,1.25328973]
[1642704403774,0.00454738,3229.1,3228.9,2.25328973]
[1642704404174,1.2248,3229.7,3228.9,1.25328973]
[1642704404175,0.00397896,3229.0,3228.9,1.25328973]
[1642704404977,0.00397896,3229.0,3228.9,6.55328973]
[1642704405174,0.00397896,3229.0,3228.9,10.5420762]
[1642704405387,0.00788147,3229.9,3229.2,0.77402]
[1642704405678,0.00454739,3229.8,3229.3,3.81640854]
[1642704406180,0.00397897,3229.7,3229.4,2.44861933]
[1642704406376,0.00397897,3229.7,3229.5,0.447]
[1642704406606,0.00788147,3229.9,3229.5,1.22096]
[1642704406607,0.00341054,3229.6,3229.5,1.22096]
[1642704407006,0.00341054,3229.6,3229.5,6.12096]
[1642704407409,0.00341054,3229.6,3229.5,7.12096]
[1642704408212,0.00341054,3229.6,3229.5,1.447]
[1642704409012,0.00341054,3229.6,3229.5,0.447]
[1642704411859,0.00341054,3229.6,3228.8,0.447]
[1642704412256,0.00284212,3229.5,3228.8,0.447]
[1642704412656,0.0022737,3229.4,3229.0,1.16086177]
[1642704413166,0.00170527,3229.3,3229.0,2.15415028]
[1642704413565,0.00113685,3229.2,3229.0,2.15415028]
[1642704414014,0.00113685,3229.2,3229.0,1.46086177]
[1642704415008,0.00113685,3229.2,3228.7,1.81881176]
[1642704415410,0.00113685,3229.2,3228.8,0.00113685]
[1642704416009,0.00113685,3229.2,3229.1,1.37648945]
[1642704416812,0.00113685,3229.2,3229.1,3.77648945]
[1642704417211,0.00113685,3229.2,3229.1,2.37648945]
[1642704417610,0.00113685,3229.2,3229.1,1.37648945]
[1642704418066,0.00113685,3229.2,3228.8,0.00113685]
[1642704419069,0.78211147,3229.9,3228.9,3.55]
[1642704419469,0.00284212,3229.7,3229.0,1.00113685]
[1642704419671,0.00284212,3229.7,3229.0,0.30113685]
[1642704419869,1.75440692,3229.6,3229.0,0.30113685]
[1642704420071,1.75440692,3229.6,3229.0,0.00113685]
[1642704420270,0.00170527,3229.5,3229.0,0.00113685]
[1642704420482,0.00170527,3229.5,3228.9,1.37383277]
[1642704420483,0.00170527,3229.5,3228.9,2.89499277]
[1642704420669,1.75213323,3229.6,3229.0,1.00113685]
[1642704420670,0.00113685,3229.4,3229.0,1.00113685]
[1642704421070,1.75213323,3229.3,3229.0,1.00113685]
[1642704422309,1.75213323,3229.4,3229.0,1.00113685]
[1642704422708,1.75213323,3229.4,3229.0,0.00113685]
[1642704422709,1.75327008,3229.4,3229.0,0.00113685]
[1642704423712,0.00113685,3229.4,3229.0,0.00113685]
[1642704425016,0.00113685,3229.4,3228.9,0.64813685]
[1642704425262,1.91793,3229.8,3228.9,0.64813685]
[1642704425263,0.00170527,3229.3,3228.9,0.64813685]
[1642704425459,0.00170527,3229.3,3228.9,2.12746652]
[1642704425658,0.00113685,3229.2,3228.9,2.12746652]
[1642704426060,0.00397897,3229.7,3228.9,2.12746652]
[1642704426463,0.00341054,3229.6,3228.9,2.12746652]
[1642704426862,0.00284212,3229.5,3228.9,2.12746652]
[1642704427263,1.91793,3229.8,3228.9,2.12746652]
[1642704427264,0.0022737,3229.4,3228.9,2.12746652]
[1642704427665,0.00170527,3229.3,3228.9,2.12746652]
[1642704427863,0.00170527,3229.3,3228.9,2.90162652]
[1642704428069,0.00113685,3229.2,3229.0,1.0]
[1642704428469,0.00397897,3229.7,3229.0,1.0]
[1642704428664,0.00397897,3229.7,3229.2,0.89453951]
[1642704428867,0.00341054,3229.6,3229.2,1.19453951]
[1642704429111,0.00341054,3229.6,3229.2,1.19366384]
[1642704429310,0.00284212,3229.5,3229.4,1.42695839]
[1642704429717,0.00284212,3229.5,3229.4,7.19298997]
[1642704429913,0.00284212,3229.5,3229.4,7.70314226]
[1642704430114,0.00284212,3229.5,3229.4,8.70314226]
[1642704430314,0.00284212,3229.5,3229.4,9.00314226]
[1642704432413,1.1622,3230.4,3229.5,5.6]
[1642704432615,1.1622,3230.4,3229.7,0.77389]
[1642704432864,0.00454739,3230.3,3229.8,2.85907393]
[1642704433066,0.00454739,3230.3,3229.9,1.0]
[1642704433266,0.00397896,3230.2,3230.0,1.33441697]
[1642704433666,0.00341054,3230.1,3230.0,2.94827769]
[1642704434066,0.00341054,3230.1,3230.0,3.94827769]
[1642704434468,0.00341054,3230.1,3230.0,4.24827769]
[1642704434876,4.7208,3231.1,3230.0,4.69527769]
[1642704435069,4.7208,3231.1,3230.3,0.77376]
[1642704435271,0.00397896,3230.8,3230.3,0.77376]
[1642704435470,0.00397896,3230.8,3230.7,2.19452414]
[1642704435671,4.7208,3231.1,3230.7,2.93752414]
[1642704435870,0.1,3231.2,3230.7,3.68452414]
[1642704436071,0.00511581,3231.0,3230.8,1.0]
[1642704436276,0.00511581,3231.0,3230.8,1.447]
[1642704436511,0.00454739,3230.9,3230.8,1.447]
[1642704436712,0.00454739,3230.9,3230.8,4.397]
[1642704437311,0.00454739,3230.9,3230.8,7.2350275]
[1642704438520,0.00454739,3230.9,3230.8,4.397]
[1642704438916,2.63183991,3230.9,3230.8,4.397]
[1642704439715,2.63183991,3230.9,3230.8,1.447]
[1642704440121,0.00454739,3230.9,3230.8,4.32942728]
[1642704442281,0.00454739,3230.9,3230.8,1.447]
[1642704442686,0.00454739,3230.9,3230.8,5.497]
[1642704444812,0.00454739,3230.9,3230.8,1.447]
[1642704445617,0.00454739,3230.9,3230.8,4.397]
[1642704446617,0.00454739,3230.9,3230.8,7.33215118]
[1642704446817,0.00454739,3230.9,3230.8,4.397]
[1642704448266,0.00454739,3230.9,3230.8,7.30995846]
[1642704448669,0.00454739,3230.9,3230.8,4.397]
[1642704449472,0.00454739,3230.9,3230.8,7.31496762]
[1642704449872,0.00454739,3230.9,3230.8,4.397]
[1642704451712,0.00454739,3230.9,3230.8,7.35963686]
[1642704452816,0.00454739,3230.9,3230.8,4.397]
[1642704453021,0.00454739,3230.9,3230.8,7.38693839]
[1642704454416,0.00454739,3230.9,3230.8,7.597]
[1642704454617,0.1,3231.2,3230.9,5.4]
[1642704454816,0.1,3231.2,3231.0,0.447]
[1642704455019,0.1,3231.7,3231.0,0.447]
[1642704455020,0.1,3231.7,3231.2,4.65]
[1642704455267,0.1,3231.7,3231.3,0.447]
[1642704455268,2.62702298,3231.6,3231.3,0.447]
[1642704455464,2.63100194,3231.6,3231.5,1.23273904]
[1642704455668,2.63100194,3231.6,3231.5,1.67973904]
[1642704455863,2.63100194,3231.6,3231.5,1.97973904]
[1642704456463,4.38227761,3231.6,3231.5,1.97973904]
[1642704457068,4.38227761,3231.6,3231.5,2.75319904]
[1642704457466,4.38227761,3231.6,3231.5,3.75319904]
[1642704458281,1.75525463,3231.6,3231.5,3.75319904]
[1642704459118,4.38214341,3231.6,3231.5,6.57623605]
[1642704459320,1.75525463,3231.6,3231.5,3.75319904]
[1642704459818,4.38215397,3231.6,3231.5,3.75319904]
[1642704460019,1.75525463,3231.6,3231.5,3.75319904]
[1642704460421,4.38215397,3231.6,3231.5,3.75319904]
[1642704460623,4.38215397,3231.6,3231.5,6.61513511]
[1642704460827,4.38215397,3231.6,3231.5,3.75319904]
[1642704461021,4.3821402,3231.6,3231.5,3.75319904]
[1642704461522,4.36307075,3231.6,3231.5,3.75319904]
[1642704462422,1.68618518,3231.6,3231.5,3.75319904]
[1642704462874,1.68618518,3231.6,3231.5,1.747]
[1642704462875,4.31309937,3231.6,3231.5,1.747]
[1642704463070,4.31309937,3231.6,3231.5,0.747]
[1642704463071,1.68618518,3231.6,3231.5,0.747]
[1642704463270,1.68618518,3231.6,3231.5,1.747]
[1642704463477,4.31309937,3231.6,3231.5,1.747]
[1642704463673,4.31309937,3231.6,3231.5,0.747]
[1642704463871,4.31309937,3231.6,3231.5,1.747]
[1642704464072,1.68618518,3231.6,3231.5,0.747]
[1642704464272,4.31309937,3231.6,3231.5,1.747]
[1642704465474,4.31309937,3231.6,3231.5,0.747]
[1642704465673,4.31309937,3231.6,3231.5,1.747]
[1642704465875,4.31309937,3231.6,3231.5,0.747]
[1642704466080,4.31309937,3231.6,3231.5,1.747]
[1642704466277,4.31309937,3231.6,3231.5,0.747]
[1642704466516,4.31309937,3231.6,3231.5,1.747]
[1642704466716,4.31309937,3231.6,3231.5,0.747]
[1642704466920,4.31309937,3231.6,3231.5,1.747]
[1642704467117,4.31309937,3231.6,3231.5,0.747]
[1642704467318,4.31309937,3231.6,3231.5,1.747]
[1642704467517,4.31309937,3231.6,3231.5,0.747]
[1642704467719,4.31309937,3231.6,3231.5,1.747]
[1642704468018,4.31309937,3231.6,3231.5,0.747]
[1642704468420,4.31309937,3231.6,3231.5,1.747]
[1642704469420,4.31309937,3231.6,3231.5,0.747]
[1642704469722,4.31309937,3231.6,3231.5,1.747]
[1642704469919,4.31309937,3231.6,3231.5,0.747]
[1642704470119,4.31309937,3231.6,3231.5,1.747]
[1642704470366,4.31309937,3231.6,3231.5,0.747]
[1642704470564,4.31309937,3231.6,3231.5,1.747]
[1642704470765,4.31309937,3231.6,3231.5,0.747]
[1642704470964,4.31309937,3231.6,3231.5,1.747]
[1642704471169,4.31309937,3231.6,3231.5,0.447]
[1642704471370,4.31309937,3231.6,3230.9,1.54722]
[1642704471569,2.62691419,3231.5,3230.9,1.54722]
[1642704471766,2.62691419,3231.5,3231.0,0.00341054]
[1642704472168,2.62720686,3231.4,3231.0,0.00341054]
[1642704472366,2.62720686,3231.3,3231.1,1.11234903]
[1642704472567,1.68618518,3231.6,3231.1,1.11234903]
[1642704472568,2.62720686,3231.2,3231.1,1.11234903]
[1642704472769,1.68618518,3231.6,3231.2,0.00227369]
[1642704472973,0.1,3231.7,3231.2,0.77362]
[1642704473176,0.1,3231.7,3231.2,0.77589369]
[1642704473376,0.1,3231.7,3231.3,0.00170527]
[1642704475217,2.58920369,3231.7,3231.3,0.00170527]
[1642704475423,2.58920369,3231.7,3231.2,0.00227369]
[1642704475424,0.0122798,3231.5,3231.2,0.00227369]
[1642704475619,0.0122798,3231.5,3230.8,0.00454739]
[1642704475818,0.0122798,3231.5,3230.4,0.00682108]
[1642704475819,1.72501946,3231.4,3230.4,0.00682108]
[1642704476020,1.57013946,3231.2,3230.4,0.00682108]
[1642704476220,2.8256177,3231.1,3230.9,1.50442054]
[1642704476428,1.57013946,3231.3,3230.9,1.50442054]
[1642704476929,2.8256177,3231.3,3230.3,1.30242264]
[1642704477123,1.57013946,3231.2,3230.0,0.00909477]
[1642704477323,2.8256177,3231.3,3230.4,0.00682108]
[1642704477324,2.8256177,3231.1,3230.4,0.00682108]
[1642704477523,2.8256177,3231.1,3230.3,0.77384]
[1642704477782,4.39575716,3231.3,3230.3,0.77384]
[1642704477973,4.39575716,3231.3,3231.0,1.35316559]
[1642704478173,4.39575716,3231.3,3230.4,0.00682108]
[1642704478374,7.72013946,3231.2,3231.1,0.00284212]
[1642704478574,7.72013946,3231.2,3230.0,2.54764]
[1642704478575,7.72013946,3231.2,3230.4,0.00682108]
[1642704478774,2.34399946,3231.3,3230.3,0.77384]
[1642704478980,5.16961716,3231.3,3230.3,0.77384]
[1642704479176,1.57013946,3231.2,3230.4,0.00682108]
[1642704479778,5.16961716,3231.3,3230.4,0.00682108]
[1642704479976,5.16961716,3231.3,3230.9,1.27127896]
[1642704480377,1.57013946,3231.2,3230.9,1.27127896]
[1642704480776,2.34399946,3231.3,3230.9,1.27127896]
[1642704481177,2.51792006,3231.2,3230.4,1.00682108]
[1642704481377,2.51792006,3231.2,3230.4,0.00682108]
[1642704481624,1.57013946,3231.1,3230.5,0.00625266]
[1642704481817,1.57013946,3231.1,3230.4,0.00682108]
[1642704482420,1.56912789,3231.1,3230.4,0.00682108]
[1642704482620,2.50712692,3231.0,3230.4,0.00682108]
[1642704482823,2.70417215,3231.0,3230.4,0.00682108]
[1642704483022,2.70417215,3231.0,3230.2,0.00795793]
[1642704483224,2.70417215,3231.0,3230.7,1.16734603]
[1642704483423,3.75574042,3231.2,3230.7,1.16734603]
[1642704483627,3.75574042,3231.2,3230.8,0.00454739]
[1642704483826,2.57754042,3231.2,3230.8,0.00454739]
[1642704485477,2.57754042,3231.2,3230.4,0.00682108]
[1642704485676,3.13689084,3231.3,3230.4,0.00682108]
[1642704486477,3.13689084,3231.3,3230.5,1.16927136]
[1642704486888,3.13689084,3231.3,3230.6,0.00568423]
[1642704487078,0.77386,3231.3,3230.6,0.00568423]
[1642704487683,2.62764534,3231.2,3230.6,0.00568423]
[1642704489315,1.75177719,3231.1,3230.6,0.00568423]
[1642704489524,2.62764534,3231.0,3230.6,0.00568423]
[1642704490519,1.75177719,3230.9,3230.6,0.00568423]
[1642704490719,2.62764534,3230.8,3230.6,0.00568423]
[1642704491921,2.34488016,3231.3,3230.6,0.00568423]
[1642704491922,2.62764534,3230.7,3230.6,0.00568423]
[1642704492130,5.4320655,3231.2,3230.6,0.00568423]
[1642704492323,2.62764534,3231.1,3230.6,0.00568423]
[1642704492972,1.75196859,3231.0,3230.6,0.00568423]
[1642704493170,2.62764534,3230.9,3230.6,0.00568423]
[1642704494371,1.75196859,3230.8,3230.6,0.00568423]
[1642704494781,2.62764534,3230.7,3230.6,0.00568423]
[1642704495173,2.62764534,3230.7,3230.5,0.00625266]
[1642704495375,2.62764534,3230.7,3229.3,3.16121159]
[1642704495376,5.27186145,3230.7,3230.2,0.00795793]
[1642704495573,4.37961393,3230.6,3230.1,0.00852635]
[1642704495774,5.74159137,3230.5,3229.8,0.01023162]
[1642704495973,2.62764534,3230.4,3229.5,1.11561377]
[1642704496173,2.78281232,3230.3,3229.5,1.11561377]
[1642704496375,2.62764534,3230.2,3229.6,0.01136847]
[1642704496627,2.45893286,3230.1,3229.6,0.01136847]
[1642704496828,2.62764534,3230.0,3229.6,0.01136847]
[1642704497534,1.75196859,3230.1,3229.6,0.01226846]
[1642704497932,1.75196859,3230.1,3229.7,0.01080004]
[1642704498133,1.75196859,3230.4,3229.7,0.01170003]
[1642704498435,2.62822653,3230.3,3229.8,0.01023162]
[1642704498633,2.62822653,3230.3,3229.8,0.78508161]
[1642704499037,2.62822653,3230.3,3229.9,0.0096632]
[1642704499436,2.62822653,3230.2,3229.9,0.01056319]
[1642704499636,2.47517653,3230.5,3229.9,0.01056319]
[1642704499836,2.62814706,3230.4,3230.0,0.00909477]
[1642704500041,2.62814706,3230.3,3230.0,0.00999476]
[1642704500299,2.62814706,3230.2,3230.0,0.00999476]
[1642704500501,9.45338218,3230.6,3230.1,0.00852635]
[1642704500702,2.62820702,3230.5,3230.1,0.00942634]
[1642704501101,2.62820702,3230.5,3230.2,0.00795793]
[1642704501301,2.62820702,3230.5,3230.2,0.00885792]
[1642704501602,2.62820702,3230.5,3230.3,0.0073895]
[1642704501801,2.62820702,3230.5,3230.3,0.00828949]
[1642704502202,2.62820702,3230.5,3230.4,0.00682108]
[1642704502402,2.62820702,3230.5,3230.4,0.00772107]
[1642704505119,5.11503698,3230.5,3230.4,0.00772107]
[1642704505520,2.62722744,3230.5,3230.4,0.00772107]
[1642704510677,5.12244404,3230.5,3230.4,0.00772107]
[1642704511722,2.62722744,3230.5,3230.4,0.00772107]
[1642704512122,5.11609106,3230.5,3230.4,0.00772107]
[1642704513528,2.62722744,3230.5,3230.4,0.00772107]
[1642704516372,2.57722744,3230.5,3230.4,0.00772107]
[1642704518184,5.04161317,3230.5,3230.4,0.00772107]
[1642704519417,6.79385666,3230.5,3230.4,0.00772107]
[1642704523375,5.04161317,3230.5,3230.4,0.00772107]
[1642704524576,6.7938622,3230.5,3230.4,0.00772107]
[1642704526379,6.7938622,3230.5,3230.4,0.00345917]
[1642704527052,5.04161317,3230.5,3230.4,0.00345917]
[1642704534628,6.79384931,3230.5,3230.4,0.00345917]
[1642704535929,5.04161317,3230.5,3230.4,0.00403035]
[1642704538779,7.06751333,3230.5,3230.4,3.035e-05]
[1642704538985,7.06751333,3230.5,3228.7,1.54831]
[1642704538986,6.15,3230.4,3228.7,1.54831]
[1642704539181,2.34881427,3229.9,3228.7,0.00147119]
[1642704539379,5.40284514,3229.8,3228.8,0.00909478]
[1642704539578,2.73210744,3229.7,3228.8,0.01056597]
[1642704539779,2.57722744,3229.6,3228.8,0.01056597]
[1642704539976,2.57722744,3229.6,3228.9,0.00852635]
[1642704540177,2.57722744,3229.6,3228.9,0.00999754]
[1642704540579,1.1445,3229.8,3229.0,0.00795793]
[1642704540580,2.57722744,3229.5,3229.0,0.00795793]
[1642704540777,1.1445,3229.8,3229.0,0.00795793]
[1642704540778,2.57722744,3229.4,3229.0,0.00942912]
[1642704540977,2.57722744,3229.3,3229.0,0.00942912]
[1642704541178,1.1445,3229.8,3229.1,0.00738951]
[1642704541379,2.62856444,3229.7,3229.1,0.0088607]
[1642704541930,2.62856444,3229.7,3229.2,0.00682108]
[1642704542132,2.62856444,3229.7,3229.2,0.00829227]
[1642704542530,2.62856444,3229.7,3229.3,0.00625266]
[1642704542734,2.62856444,3229.7,3229.3,0.00772385]
[1642704543136,2.62856444,3229.7,3229.4,0.00568423]
[1642704543335,2.62856444,3229.7,3229.4,0.00715542]
[1642704543734,2.62856444,3229.7,3229.5,0.00511581]
[1642704543938,2.62856444,3229.7,3229.5,0.006587]
[1642704544239,2.62856444,3229.7,3229.6,0.00454739]
[1642704544434,5.27856444,3229.7,3229.6,0.00601858]
[1642704544835,7.79391654,3229.7,3229.6,0.00601858]
[1642704545283,7.75948433,3229.7,3229.6,0.00601858]
[1642704546280,2.62856444,3229.7,3229.6,0.00601858]
[1642704546676,2.62856444,3230.2,3229.6,0.00601858]
[1642704546883,2.62856444,3230.1,3229.6,0.00601858]
[1642704547078,2.62856444,3230.0,3229.7,0.00397896]
[1642704547278,2.62856444,3229.9,3229.7,0.00545015]
[1642704547476,1.2202,3230.3,3229.7,0.00545015]
[1642704547477,2.62856444,3229.8,3229.7,0.00545015]
[1642704547677,2.79467427,3230.3,3229.8,0.00341054]
[1642704547882,1.2202,3230.3,3229.8,0.00147119]
[1642704548083,1.2202,3230.3,3229.8,0.00488173]
[1642704548284,2.79467427,3230.3,3229.9,0.00284212]
[1642704548483,2.79467427,3230.3,3229.9,0.00431331]
[1642704548880,1.57447427,3230.2,3230.0,0.00227369]
[1642704549129,1.2202,3230.3,3230.0,0.00374488]
[1642704549325,2.79467427,3230.3,3230.0,0.00374488]
[1642704549531,2.79467427,3230.3,3230.1,0.00170527]
[1642704549532,1.2202,3230.3,3230.1,0.00170527]
[1642704549727,1.2202,3230.3,3230.1,0.00317646]
[1642704550128,2.79467427,3230.3,3230.2,0.00113685]
[1642704550327,7.89467427,3230.3,3230.2,0.00260804]
[1642704551229,6.3202,3230.3,3230.2,0.00260804]
[1642704552881,7.89467427,3230.3,3230.2,0.00260804]
[1642704553080,6.3202,3230.3,3230.2,0.00260804]
[1642704562785,8.9483317,3230.3,3230.2,0.00260804]
[1642704565039,9.41352788,3230.3,3230.2,0.00260804]
[1642704567138,4.31352788,3230.3,3230.2,0.00260804]
[1642704568785,3.8483317,3230.3,3230.2,0.00260804]
[1642704569189,2.6281317,3230.3,3230.2,0.00260804]
[1642704569588,12.0299,3230.6,3230.2,0.00260804]
[1642704569589,2.6281317,3230.4,3230.2,0.00260804]
[1642704569789,3.94225296,3230.5,3230.4,0.00081649]
[1642704569994,8.0788,3230.6,3230.4,0.00228768]
[1642704570196,5.51672723,3231.0,3230.4,0.00228768]
[1642704570392,1.57447427,3231.1,3230.4,0.00228768]
[1642704570590,0.00113685,3230.6,3230.4,0.00228768]
[1642704570991,1.57902166,3231.2,3230.4,0.00228768]
[1642704571392,0.00397896,3231.1,3230.4,0.00228768]
[1642704571836,0.00341054,3231.0,3230.4,0.00228768]
[1642704572236,0.00284212,3230.9,3230.4,0.00228768]
[1642704572637,0.00227369,3230.8,3230.4,0.00228768]
[1642704573035,0.00170527,3230.7,3230.4,0.00228768]
[1642704573437,1.57902166,3231.2,3230.4,0.00228768]
[1642704573636,1.57447427,3231.1,3230.4,0.00228768]
[1642704573836,0.00397896,3231.1,3230.4,0.00228768]
[1642704574038,0.00341054,3231.0,3230.4,0.00228768]
[1642704574437,0.00284212,3230.9,3230.4,0.00228768]
[1642704574837,0.0014007,3230.8,3230.4,0.00228768]
[1642704575276,0.00083228,3230.7,3230.4,0.00228768]
[1642704575681,0.0014007,3230.8,3230.4,0.00228768]
[1642704576082,0.00083228,3230.7,3230.4,0.00228768]
[1642704576482,0.0014007,3230.8,3230.4,0.00228768]
[1642704576886,0.00083228,3230.7,3230.4,0.00228768]
[1642704577286,0.0014007,3230.8,3230.4,0.00228768]
[1642704577684,0.00083228,3230.7,3230.4,0.00228768]
[1642704578101,0.0014007,3230.8,3230.4,0.00228768]
[1642704578488,0.00083228,3230.7,3230.4,0.00228768]
[1642704579072,0.0014007,3230.8,3230.4,0.00228768]
[1642704579467,0.00083228,3230.7,3230.4,0.00228768]
[1642704579865,0.0014007,3230.8,3230.4,0.00228768]
[1642704580268,0.00083228,3230.7,3230.4,0.00228768]
[1642704580675,1.83686228,3230.9,3230.4,0.00228768]
[1642704580866,1.83686228,3230.9,3230.5,0.00113685]
[1642704581067,1.83686228,3230.9,3230.5,0.00260804]
[1642704581268,1.75203287,3230.8,3230.5,0.00260804]
[1642704583983,3.32650714,3230.8,3230.5,0.00260804]
[1642704584585,1.75203287,3230.8,3230.5,0.00260804]
[1642704584785,2.62799219,3230.7,3230.5,0.00260804]
[1642704586385,2.62799219,3230.6,3230.5,0.00260804]
[1642704587057,1.83686228,3230.9,3230.5,0.00260804]
[1642704587251,2.62786297,3230.8,3230.5,0.00260804]
[1642704587459,4.37982843,3230.8,3230.5,0.00260804]
[1642704587660,2.62786297,3230.7,3230.5,0.00260804]
[1642704588961,1.2221,3230.9,3230.5,0.00260804]
[1642704588962,2.62786297,3230.6,3230.5,0.00260804]
[1642704589161,2.62786297,3230.8,3230.5,0.00260804]
[1642704590995,2.57786297,3230.8,3230.5,0.00260804]
[1642704594937,1.75199184,3230.7,3230.5,0.00260804]
[1642704595136,2.52598184,3230.7,3230.5,0.00260804]
[1642704596341,0.77399,3230.7,3230.5,0.00260804]
[1642704599417,1.2221,3230.9,3230.5,0.00260804]
[1642704600018,1.75191329,3230.8,3230.5,0.00260804]
[1642704606397,1.2221,3230.9,3230.5,0.00260804]
[1642704610849,1.2221,3230.9,3230.5,0.00147119]
[1642704611048,2.6277873,3230.8,3230.5,0.00147119]
[1642704612548,2.6277873,3230.7,3230.5,0.00147119]
[1642704612801,2.6277873,3230.6,3230.5,0.00147119]
[1642704613196,2.6277873,3230.8,3230.5,0.00147119]
[1642704613394,2.6277873,3230.7,3230.5,0.00147119]
[1642704613595,2.6277873,3230.6,3230.5,0.00147119]
[1642704613996,1.2221,3230.9,3230.5,0.00147119]
[1642704613997,2.6277873,3230.8,3230.5,0.00147119]
[1642704614597,2.62691875,3230.8,3230.5,0.00147119]
[1642704615398,3.6092,3231.2,3230.5,0.00147119]
[1642704615598,3.6092,3231.2,3230.5,1.00147119]
[1642704615797,0.00227369,3231.1,3230.5,1.00147119]
[1642704616000,0.00227369,3231.1,3230.5,1.77525119]
[1642704616200,0.00170527,3231.0,3230.5,0.77525119]
[1642704616400,0.00170527,3231.0,3230.5,1.77525119]
[1642704616641,0.00113685,3230.9,3230.5,0.77525119]
[1642704616844,0.00113685,3230.9,3230.5,1.77525119]
[1642704617444,0.00113685,3230.9,3230.5,0.77525119]
[1642704617646,0.00113685,3230.9,3230.5,1.77525119]
[1642704617846,0.00113685,3230.9,3230.5,0.77525119]
[1642704618044,0.00113685,3230.9,3230.5,1.77525119]
[1642704618245,0.00113685,3230.9,3230.5,0.77525119]
[1642704618445,0.00113685,3230.9,3230.5,1.77525119]
[1642704618745,0.00113685,3230.9,3230.5,0.00147119]
[1642704618945,0.00113685,3230.9,3230.5,1.00147119]
[1642704619145,0.00113685,3230.9,3230.5,0.00147119]
[1642704620293,2.93870184,3230.9,3230.5,0.00147119]
[1642704621092,0.00113685,3230.9,3230.5,0.00147119]
[1642704621494,1.7519193,3230.8,3230.5,0.00147119]
[1642704622899,4.51118486,3230.7,3230.5,0.00147119]
[1642704623102,5.6417614,3230.6,3230.5,0.00147119]
[1642704624137,1.7519193,3230.6,3230.5,0.00147119]
[1642704626537,1.7519193,3230.6,3230.5,0.00049607]
[1642704626940,3.32639357,3230.6,3230.5,0.00049607]
[1642704627140,1.7519193,3230.6,3230.5,0.00049607]
[1642704631547,1.97176,3230.7,3230.5,0.00049607]
[1642704633649,3.54623427,3230.7,3230.5,0.00049607]
[1642704634050,7.35204671,3230.6,3230.5,0.00049607]
[1642704634646,9.98003495,3230.6,3230.5,0.00049607]
[1642704637596,4.38003495,3230.6,3230.5,0.00049607]
[1642704641543,2.62798824,3230.6,3230.5,0.00049607]
[1642704645296,0.30950393,3230.5,3230.4,0.00081649]
[1642704645500,2.93749217,3230.5,3230.4,0.00228759]
[1642704645696,2.93749217,3230.5,3230.4,0.00399286]
[1642704649152,4.68939432,3230.5,3230.4,0.00399286]
[1642704652795,0.71561201,3230.9,3230.5,4.95]
[1642704653008,2.62780575,3230.8,3230.5,5.2514711]
[1642704653207,2.62780575,3231.2,3230.6,1.447]
[1642704653407,0.00170527,3231.0,3230.6,1.44847102]
[1642704653799,0.00113685,3230.9,3230.6,1.44847102]
[1642704654241,2.63292156,3231.6,3230.6,1.44847102]
[1642704654441,2.62780575,3231.5,3230.6,1.44847102]
[1642704654640,2.63235314,3231.5,3230.6,1.44847102]
[1642704654840,2.63178471,3231.4,3230.6,1.44847102]
[1642704655041,2.62780575,3231.3,3231.0,1.4469683]
[1642704655241,2.63121629,3231.3,3231.0,1.44843929]
[1642704655443,2.63064787,3231.2,3231.0,1.74843929]
[1642704655639,2.62780575,3231.1,3231.0,1.74843929]
[1642704655839,0.00227369,3231.1,3231.0,1.74843929]
[1642704656046,0.00227369,3231.1,3231.0,4.61673683]
[1642704656239,0.00227369,3231.1,3231.0,1.74843929]
[1642704656440,0.00227369,3231.1,3231.0,2.74843929]
[1642704656641,0.00227369,3231.1,3231.0,2.74843924]
[1642704657040,0.00227369,3231.1,3231.0,2.74843922]
[1642704657240,0.00227369,3231.1,3231.0,7.79843922]
[1642704659490,0.00227369,3231.1,3231.0,10.54724021]
[1642704659691,0.00227369,3231.1,3231.0,7.79843922]
[1642704660396,0.00227369,3231.1,3231.0,1.30147092]
[1642704660590,0.00227369,3231.1,3231.0,0.30147083]
[1642704661396,0.00227369,3231.1,3231.0,0.00147083]
[1642704662139,0.00227369,3231.1,3231.0,2.40147083]
[1642704662436,0.00227369,3231.1,3231.0,0.00147083]
[1642704663442,2.63007944,3231.1,3231.0,0.00147083]
[1642704663642,0.00227369,3231.1,3231.0,0.00147083]
[1642704666494,2.63007944,3231.1,3231.0,0.00147083]
[1642704667195,0.00227369,3231.1,3231.0,0.00147083]
[1642704668599,0.76249369,3231.2,3231.0,0.00147083]
[1642704668796,2.62780575,3231.1,3231.0,0.00147083]
[1642704669646,0.77375,3231.6,3231.0,0.00147083]
[1642704669647,4.97157628,3231.6,3231.0,0.00147083]
[1642704669848,2.62780575,3231.5,3231.0,0.00147083]
[1642704670046,2.63007945,3231.5,3231.0,0.00147083]
[1642704672894,2.62780575,3231.4,3231.0,0.00147083]
[1642704673093,2.63007945,3231.5,3231.0,0.00147083]
[1642704673292,0.00113685,3231.3,3231.0,0.00147083]